[Event "Late-Titled-Tuesday-Blitz-February-06-2024"]
[Site "Chess.com"]
[Date "2024.02.06"]
[Round "2"]
[White "Zapateado"]
[Black "jinbojinbo"]
[Result "0-1"]
[WhiteElo "2355"]
[BlackElo "2623"]
[TimeControl "180+1"]
[EndTime "14:13:20 PST"]
[Termination "jinbojinbo won by resignation"]

1. c4 {[%clk 0:02:59.9]} 1... Nf6 {[%clk 0:02:58.8]} 2. g3 {[%clk 0:02:57.1]}
2... g6 {[%clk 0:02:58.9]} 3. Nc3 {[%clk 0:02:57.4]} 3... Bg7 {[%clk 0:02:59.8]}
4. Bg2 {[%clk 0:02:57.9]} 4... O-O {[%clk 0:03:00.2]} 5. e4 {[%clk 0:02:58.6]}
5... d6 {[%clk 0:03:00.6]} 6. Nge2 {[%clk 0:02:58.9]} 6... e5 {[%clk 0:02:57]}
7. O-O {[%clk 0:02:59.2]} 7... Nc6 {[%clk 0:02:54.2]} 8. d3 {[%clk 0:02:59.5]}
8... Be6 {[%clk 0:02:52.5]} 9. Nd5 {[%clk 0:02:56.7]} 9... Nd7 {[%clk
0:02:48.1]} 10. f4 {[%clk 0:02:50.9]} 10... exf4 {[%clk 0:02:47]} 11. Ndxf4
{[%clk 0:02:31.9]} 11... Nd4 {[%clk 0:02:36.2]} 12. Be3 {[%clk 0:02:19.3]} 12...
Bg4 {[%clk 0:02:25.6]} 13. Bh3 {[%clk 0:02:04.9]} 13... Nxe2+ {[%clk 0:02:24.4]}
14. Kh1 {[%clk 0:01:56.5]} 14... Nxg3+ {[%clk 0:02:23.7]} 0-1

[Event "Late-Titled-Tuesday-Blitz-February-06-2024"]
[Site "Chess.com"]
[Date "2024.02.06"]
[Round "2"]
[White "masterofpuppets2"]
[Black "Hooded_Old_Man"]
[Result "1-0"]
[WhiteElo "2511"]
[BlackElo "2238"]
[TimeControl "180+1"]
[EndTime "14:13:27 PST"]
[Termination "masterofpuppets2 won by resignation"]

1. e4 {[%clk 0:03:00.9]} 1... d6 {[%clk 0:03:00.9]} 2. d4 {[%clk 0:03:01.1]}
2... Nf6 {[%clk 0:03:00.9]} 3. Nc3 {[%clk 0:03:01.3]} 3... e5 {[%clk 0:03:01.4]}
4. Nf3 {[%clk 0:03:01]} 4... Nbd7 {[%clk 0:02:59.9]} 5. Bc4 {[%clk 0:03:00.6]}
5... Be7 {[%clk 0:02:57.4]} 6. O-O {[%clk 0:03:00.9]} 6... O-O {[%clk
0:02:55.5]} 7. Re1 {[%clk 0:03:01.3]} 7... c6 {[%clk 0:02:54.7]} 8. a4 {[%clk
0:03:00.3]} 8... b6 {[%clk 0:02:52.1]} 9. h3 {[%clk 0:02:54.7]} 9... a6 {[%clk
0:02:51.4]} 10. Bg5 {[%clk 0:02:46.4]} 10... Bb7 {[%clk 0:02:48.1]} 11. Qe2
{[%clk 0:02:40.6]} 11... b5 {[%clk 0:02:47.7]} 12. axb5 {[%clk 0:02:38.5]} 12...
axb5 {[%clk 0:02:48.6]} 13. Rxa8 {[%clk 0:02:37.7]} 13... Bxa8 {[%clk
0:02:43.4]} 14. Bb3 {[%clk 0:02:37]} 14... Re8 {[%clk 0:02:41.6]} 15. Rd1 {[%clk
0:02:22.2]} 15... Qc7 {[%clk 0:02:41.7]} 16. d5 {[%clk 0:02:19.5]} 16... b4
{[%clk 0:02:26.1]} 17. dxc6 {[%clk 0:02:16.9]} 17... bxc3 {[%clk 0:02:26.2]} 18.
cxd7 {[%clk 0:02:16.3]} 18... Nxd7 {[%clk 0:02:25.7]} 19. bxc3 {[%clk
0:02:08.2]} 19... Bxg5 {[%clk 0:02:16.6]} 20. Nxg5 {[%clk 0:02:08]} 20... Nf6
{[%clk 0:02:17.5]} 21. Bxf7+ {[%clk 0:02:06.7]} 1-0

[Event "Late-Titled-Tuesday-Blitz-February-06-2024"]
[Site "Chess.com"]
[Date "2024.02.06"]
[Round "2"]
[White "Konavets"]
[Black "marcodobrikov"]
[Result "1-0"]
[WhiteElo "3124"]
[BlackElo "2664"]
[TimeControl "180+1"]
[EndTime "14:13:29 PST"]
[Termination "Konavets won by checkmate"]

1. e4 {[%clk 0:03:00.9]} 1... e5 {[%clk 0:02:56.8]} 2. Nf3 {[%clk 0:03:01.1]}
2... Nc6 {[%clk 0:02:56.6]} 3. Bb5 {[%clk 0:03:01.6]} 3... a6 {[%clk 0:02:56.5]}
4. Ba4 {[%clk 0:03:01.5]} 4... Nf6 {[%clk 0:02:53.6]} 5. Qe2 {[%clk 0:03:02]}
5... d6 {[%clk 0:02:51.4]} 6. c3 {[%clk 0:03:00.5]} 6... Be7 {[%clk 0:02:50]} 7.
d4 {[%clk 0:03:00.9]} 7... b5 {[%clk 0:02:49.2]} 8. Bb3 {[%clk 0:02:59.2]} 8...
O-O {[%clk 0:02:49.3]} 9. O-O {[%clk 0:02:57.6]} 9... Bb7 {[%clk 0:02:48.6]} 10.
Rd1 {[%clk 0:02:55.4]} 10... Qc8 {[%clk 0:02:46.9]} 11. Nbd2 {[%clk 0:02:54.2]}
11... Nd7 {[%clk 0:02:42.7]} 12. Nf1 {[%clk 0:02:53.2]} 12... Na5 {[%clk
0:02:41.4]} 13. Bc2 {[%clk 0:02:53.3]} 13... c5 {[%clk 0:02:40.9]} 14. Ng3
{[%clk 0:02:50.2]} 14... Re8 {[%clk 0:02:35.4]} 15. dxc5 {[%clk 0:02:45.6]}
15... Nxc5 {[%clk 0:02:31.1]} 16. b4 {[%clk 0:02:44.4]} 16... Ne6 {[%clk
0:02:25.6]} 17. bxa5 {[%clk 0:02:44.6]} 17... Qxc3 {[%clk 0:02:26.5]} 18. Rb1
{[%clk 0:02:40.6]} 18... Qxa5 {[%clk 0:02:26.6]} 19. Bb3 {[%clk 0:02:40.1]}
19... Nc5 {[%clk 0:02:25.4]} 20. Nf5 {[%clk 0:02:36.3]} 20... Bf8 {[%clk
0:02:24.2]} 21. Bxf7+ {[%clk 0:02:27.2]} 21... Kxf7 {[%clk 0:02:18.4]} 22. Ng5+
{[%clk 0:02:28.1]} 22... Kg8 {[%clk 0:02:15.1]} 23. Qh5 {[%clk 0:02:27.9]} 23...
h6 {[%clk 0:02:00.4]} 24. Nxh6+ {[%clk 0:02:28.3]} 24... Kh8 {[%clk 0:01:59.7]}
25. Nhf7+ {[%clk 0:02:28.5]} 25... Kg8 {[%clk 0:02:00.3]} 26. Qh8# {[%clk
0:02:29.4]} 1-0

[Event "Late-Titled-Tuesday-Blitz-February-06-2024"]
[Site "Chess.com"]
[Date "2024.02.06"]
[Round "2"]
[White "Kiborg95"]
[Black "reevecanada"]
[Result "1-0"]
[WhiteElo "2841"]
[BlackElo "2559"]
[TimeControl "180+1"]
[EndTime "14:13:39 PST"]
[Termination "Kiborg95 won by checkmate"]

1. e4 {[%clk 0:02:54.6]} 1... c5 {[%clk 0:02:59.2]} 2. Nc3 {[%clk 0:02:48.1]}
2... Nc6 {[%clk 0:02:53.9]} 3. Nge2 {[%clk 0:02:48.3]} 3... d6 {[%clk
0:02:46.7]} 4. d4 {[%clk 0:02:47.7]} 4... cxd4 {[%clk 0:02:46.3]} 5. Nxd4 {[%clk
0:02:48.6]} 5... Nxd4 {[%clk 0:02:44.4]} 6. Qxd4 {[%clk 0:02:47.9]} 6... Nf6
{[%clk 0:02:45.3]} 7. Bg5 {[%clk 0:02:47.2]} 7... e6 {[%clk 0:02:44.1]} 8. O-O-O
{[%clk 0:02:46.6]} 8... Qa5 {[%clk 0:02:37.2]} 9. Bxf6 {[%clk 0:02:35.4]} 9...
gxf6 {[%clk 0:02:38.1]} 10. Qxf6 {[%clk 0:02:35.9]} 10... Rg8 {[%clk 0:02:31.1]}
11. Bb5+ {[%clk 0:02:35.6]} 11... Bd7 {[%clk 0:02:29.3]} 12. Bxd7+ {[%clk
0:02:20.9]} 12... Kxd7 {[%clk 0:02:30.2]} 13. Qxf7+ {[%clk 0:02:21.4]} 13... Be7
{[%clk 0:02:27.4]} 14. Rxd6+ {[%clk 0:02:11.7]} 14... Kxd6 {[%clk 0:02:12.4]}
15. Rd1+ {[%clk 0:02:12.1]} 15... Ke5 {[%clk 0:01:45.8]} 16. f4# {[%clk
0:02:11.1]} 1-0

[Event "Late-Titled-Tuesday-Blitz-February-06-2024"]
[Site "Chess.com"]
[Date "2024.02.06"]
[Round "2"]
[White "Boundless_Strike"]
[Black "Akhayan"]
[Result "1-0"]
[WhiteElo "2664"]
[BlackElo "2369"]
[TimeControl "180+1"]
[EndTime "14:14:02 PST"]
[Termination "Boundless_Strike won by resignation"]

1. d4 {[%clk 0:03:00.9]} 1... Nf6 {[%clk 0:02:52.8]} 2. f3 {[%clk 0:03:00.7]}
2... c5 {[%clk 0:02:48.3]} 3. d5 {[%clk 0:03:00]} 3... e6 {[%clk 0:02:48.3]} 4.
c4 {[%clk 0:03:00.1]} 4... b5 {[%clk 0:02:47.3]} 5. Nc3 {[%clk 0:02:56.2]} 5...
bxc4 {[%clk 0:02:46.8]} 6. e4 {[%clk 0:02:54.9]} 6... exd5 {[%clk 0:02:47]} 7.
Nxd5 {[%clk 0:02:53.9]} 7... Bb7 {[%clk 0:02:45.5]} 8. Bxc4 {[%clk 0:02:52.7]}
8... Nxd5 {[%clk 0:02:42.7]} 9. Bxd5 {[%clk 0:02:53]} 9... Bxd5 {[%clk
0:02:43.3]} 10. Qxd5 {[%clk 0:02:53.1]} 10... Nc6 {[%clk 0:02:43.7]} 11. Nh3
{[%clk 0:02:49.7]} 11... Qh4+ {[%clk 0:02:38.8]} 12. Ke2 {[%clk 0:02:46.3]}
12... Nd4+ {[%clk 0:02:37.6]} 13. Kd3 {[%clk 0:02:46.7]} 13... Rb8 {[%clk
0:02:28.6]} 14. Bg5 {[%clk 0:02:42.3]} 14... c4+ {[%clk 0:01:40.8]} 15. Kxd4
{[%clk 0:02:28.4]} 15... Qh5 {[%clk 0:01:18.2]} 16. Qe5+ {[%clk 0:02:26.4]} 1-0

[Event "Late-Titled-Tuesday-Blitz-February-06-2024"]
[Site "Chess.com"]
[Date "2024.02.06"]
[Round "2"]
[White "Viktor_Poddubnyi"]
[Black "colegiodemadrid"]
[Result "1-0"]
[WhiteElo "2277"]
[BlackElo "2501"]
[TimeControl "180+1"]
[EndTime "14:14:02 PST"]
[Termination "Viktor_Poddubnyi won by resignation"]

1. e4 {[%clk 0:03:00.3]} 1... c6 {[%clk 0:02:50.1]} 2. d4 {[%clk 0:02:58.2]}
2... d5 {[%clk 0:02:50.5]} 3. exd5 {[%clk 0:02:58.1]} 3... cxd5 {[%clk
0:02:50.3]} 4. c4 {[%clk 0:02:58.4]} 4... Nf6 {[%clk 0:02:45.9]} 5. Nc3 {[%clk
0:02:58.8]} 5... g6 {[%clk 0:02:45.3]} 6. Qb3 {[%clk 0:02:56.4]} 6... Bg7 {[%clk
0:02:43.5]} 7. cxd5 {[%clk 0:02:56.6]} 7... O-O {[%clk 0:02:43.6]} 8. Be2 {[%clk
0:02:57.1]} 8... Nbd7 {[%clk 0:02:36.1]} 9. Bf3 {[%clk 0:02:57.3]} 9... Nb6
{[%clk 0:02:36.7]} 10. Nge2 {[%clk 0:02:57.5]} 10... Bf5 {[%clk 0:02:25.2]} 11.
O-O {[%clk 0:02:54.7]} 11... Bd3 {[%clk 0:02:24.7]} 12. d6 {[%clk 0:02:55]}
12... Qxd6 {[%clk 0:02:18.6]} 13. Bxb7 {[%clk 0:02:53.7]} 13... Rab8 {[%clk
0:02:18.4]} 14. Bf3 {[%clk 0:02:53.8]} 14... Nbd5 {[%clk 0:01:58.4]} 15. Qd1
{[%clk 0:02:47.2]} 15... Ba6 {[%clk 0:01:50.1]} 16. Re1 {[%clk 0:02:44.7]} 16...
Rfd8 {[%clk 0:01:46.9]} 17. Na4 {[%clk 0:02:28.2]} 17... Qb6 {[%clk 0:01:21.4]}
18. Nxb6 {[%clk 0:02:27.2]} 1-0

[Event "Late-Titled-Tuesday-Blitz-February-06-2024"]
[Site "Chess.com"]
[Date "2024.02.06"]
[Round "2"]
[White "CaspiIsrael"]
[Black "DraningWaterHi"]
[Result "1-0"]
[WhiteElo "2680"]
[BlackElo "2180"]
[TimeControl "180+1"]
[EndTime "14:14:04 PST"]
[Termination "CaspiIsrael won by resignation"]

1. Nf3 {[%clk 0:03:00.9]} 1... Nf6 {[%clk 0:02:59.5]} 2. g3 {[%clk 0:03:00.7]}
2... g6 {[%clk 0:02:58.6]} 3. Bg2 {[%clk 0:03:01.4]} 3... Bg7 {[%clk 0:02:58.7]}
4. O-O {[%clk 0:03:02.1]} 4... O-O {[%clk 0:02:58.7]} 5. d4 {[%clk 0:03:02.4]}
5... d6 {[%clk 0:02:58.8]} 6. a4 {[%clk 0:03:01.3]} 6... a5 {[%clk 0:02:56.4]}
7. Re1 {[%clk 0:03:01.1]} 7... Nbd7 {[%clk 0:02:55.9]} 8. e4 {[%clk 0:03:01.1]}
8... e5 {[%clk 0:02:55.7]} 9. Nc3 {[%clk 0:03:00]} 9... c6 {[%clk 0:02:54.2]}
10. h3 {[%clk 0:03:00]} 10... h6 {[%clk 0:02:54.6]} 11. Be3 {[%clk 0:02:59.4]}
11... Qe7 {[%clk 0:02:53.4]} 12. Qd2 {[%clk 0:02:51.5]} 12... Rd8 {[%clk
0:02:52.5]} 13. Bxh6 {[%clk 0:02:50.6]} 13... exd4 {[%clk 0:02:48.4]} 14. Nxd4
{[%clk 0:02:48.9]} 14... Nc5 {[%clk 0:02:48.2]} 15. Bxg7 {[%clk 0:02:48.2]}
15... Kxg7 {[%clk 0:02:48.7]} 16. Rad1 {[%clk 0:02:48]} 16... Rh8 {[%clk
0:02:45.4]} 17. g4 {[%clk 0:02:41.8]} 17... Rd8 {[%clk 0:02:23.4]} 18. Qf4
{[%clk 0:02:37.8]} 18... Nfd7 {[%clk 0:02:16.7]} 19. Qg3 {[%clk 0:02:30.3]}
19... Ne5 {[%clk 0:02:00.3]} 20. f4 {[%clk 0:02:28.7]} 20... Nc4 {[%clk
0:02:00.4]} 21. b3 {[%clk 0:02:28.3]} 21... Nb6 {[%clk 0:01:58.1]} 22. e5 {[%clk
0:02:28.1]} 22... d5 {[%clk 0:01:57.8]} 23. f5 {[%clk 0:02:26.8]} 23... Qg5
{[%clk 0:01:54.5]} 24. h4 {[%clk 0:02:23.5]} 24... Qh6 {[%clk 0:01:48.3]} 25. g5
{[%clk 0:02:23.8]} 25... Qh8 {[%clk 0:01:47.9]} 26. e6 {[%clk 0:02:19.8]} 26...
Qf8 {[%clk 0:01:41.1]} 27. e7 {[%clk 0:02:18.9]} 1-0

[Event "Late-Titled-Tuesday-Blitz-February-06-2024"]
[Site "Chess.com"]
[Date "2024.02.06"]
[Round "2"]
[White "ChessBrainiacOnTwitch"]
[Black "PapaieDudu"]
[Result "1-0"]
[WhiteElo "2858"]
[BlackElo "2401"]
[TimeControl "180+1"]
[EndTime "14:14:34 PST"]
[Termination "ChessBrainiacOnTwitch won by checkmate"]

1. e4 {[%clk 0:03:00.9]} 1... c5 {[%clk 0:03:00.2]} 2. Nf3 {[%clk 0:02:56.2]}
2... d6 {[%clk 0:03:00.1]} 3. g3 {[%clk 0:02:43.1]} 3... Nc6 {[%clk 0:02:59.9]}
4. Bg2 {[%clk 0:02:43.3]} 4... Nf6 {[%clk 0:03:00.5]} 5. Qe2 {[%clk 0:02:42.5]}
5... g6 {[%clk 0:03:01.2]} 6. O-O {[%clk 0:02:42.9]} 6... Bg7 {[%clk 0:03:01.6]}
7. c3 {[%clk 0:02:43.1]} 7... O-O {[%clk 0:03:00.8]} 8. d4 {[%clk 0:02:43.2]}
8... cxd4 {[%clk 0:03:01.4]} 9. cxd4 {[%clk 0:02:43.5]} 9... d5 {[%clk
0:03:01.9]} 10. e5 {[%clk 0:02:43.9]} 10... Ne4 {[%clk 0:03:02.3]} 11. Nc3
{[%clk 0:02:42.5]} 11... Nxc3 {[%clk 0:03:01.1]} 12. bxc3 {[%clk 0:02:43.4]}
12... h6 {[%clk 0:02:59.9]} 13. Re1 {[%clk 0:02:43]} 13... Kh7 {[%clk 0:03:00]}
14. h4 {[%clk 0:02:41.8]} 14... Qd7 {[%clk 0:02:59.9]} 15. h5 {[%clk 0:02:41.3]}
15... Nd8 {[%clk 0:02:59.7]} 16. a4 {[%clk 0:02:34.8]} 16... Qg4 {[%clk
0:02:59.2]} 17. hxg6+ {[%clk 0:02:34.6]} 17... fxg6 {[%clk 0:02:59.4]} 18. Qe3
{[%clk 0:02:31.2]} 18... Bf5 {[%clk 0:02:59]} 19. Ba3 {[%clk 0:02:30.6]} 19...
Rf7 {[%clk 0:02:58.1]} 20. Nh2 {[%clk 0:02:26.2]} 20... Qg5 {[%clk 0:02:56.4]}
21. f4 {[%clk 0:02:18.7]} 21... Qh5 {[%clk 0:02:55.2]} 22. Bf3 {[%clk
0:01:53.2]} 22... Qh3 {[%clk 0:02:54.8]} 23. Bxd5 {[%clk 0:01:53.7]} 23... e6
{[%clk 0:02:54.7]} 24. Bg2 {[%clk 0:01:52.6]} 24... Qh5 {[%clk 0:02:54.9]} 25.
Kf2 {[%clk 0:01:31.7]} 25... g5 {[%clk 0:02:51.4]} 26. Rh1 {[%clk 0:01:26.2]}
26... Qg6 {[%clk 0:02:50.2]} 27. Nf3 {[%clk 0:01:25.3]} 27... Be4 {[%clk
0:02:46.1]} 28. Nxg5+ {[%clk 0:01:23.2]} 28... Kg8 {[%clk 0:02:45.3]} 29. Nxe4
{[%clk 0:01:19.8]} 29... Nc6 {[%clk 0:02:43.9]} 30. Rab1 {[%clk 0:01:19.1]}
30... Ne7 {[%clk 0:02:42]} 31. Nd6 {[%clk 0:01:16.2]} 31... Nd5 {[%clk
0:02:42.2]} 32. Bxd5 {[%clk 0:01:15.1]} 32... exd5 {[%clk 0:02:42.6]} 33. Nxf7
{[%clk 0:01:15.5]} 33... Qc2+ {[%clk 0:02:43.2]} 34. Qe2 {[%clk 0:01:14.7]}
34... Qxe2+ {[%clk 0:02:41]} 35. Kxe2 {[%clk 0:01:14.8]} 35... Kxf7 {[%clk
0:02:41.9]} 36. Rxb7+ {[%clk 0:01:15.1]} 36... Kg6 {[%clk 0:02:42.6]} 37. f5+
{[%clk 0:01:15.3]} 37... Kxf5 {[%clk 0:02:43.5]} 38. Rxg7 {[%clk 0:01:15.6]}
38... Ke4 {[%clk 0:02:44.4]} 39. Rh4+ {[%clk 0:01:13.8]} 39... Kf5 {[%clk
0:02:44.6]} 40. Rf4+ {[%clk 0:01:14.7]} 40... Ke6 {[%clk 0:02:45]} 41. Rf6#
{[%clk 0:01:15.6]} 1-0

[Event "Late-Titled-Tuesday-Blitz-February-06-2024"]
[Site "Chess.com"]
[Date "2024.02.06"]
[Round "2"]
[White "yaguigor"]
[Black "FredddieCroderg"]
[Result "1-0"]
[WhiteElo "2719"]
[BlackElo "2386"]
[TimeControl "180+1"]
[EndTime "14:14:39 PST"]
[Termination "yaguigor won by resignation"]

1. Nf3 {[%clk 0:02:44.5]} 1... Nf6 {[%clk 0:02:57.3]} 2. c4 {[%clk 0:02:43.7]}
2... e6 {[%clk 0:02:56.9]} 3. Nc3 {[%clk 0:02:43.9]} 3... d5 {[%clk 0:02:56.7]}
4. d4 {[%clk 0:02:43.7]} 4... Be7 {[%clk 0:02:55.3]} 5. Bf4 {[%clk 0:02:42.6]}
5... O-O {[%clk 0:02:54.9]} 6. e3 {[%clk 0:02:42.8]} 6... c5 {[%clk 0:02:50.4]}
7. dxc5 {[%clk 0:02:41.9]} 7... Bxc5 {[%clk 0:02:46.9]} 8. cxd5 {[%clk
0:02:38.9]} 8... Nxd5 {[%clk 0:02:43.3]} 9. Nxd5 {[%clk 0:02:38.5]} 9... exd5
{[%clk 0:02:42.5]} 10. a3 {[%clk 0:02:38.1]} 10... Nc6 {[%clk 0:02:38.3]} 11.
Bd3 {[%clk 0:02:38.2]} 11... Bg4 {[%clk 0:02:28.8]} 12. Bxh7+ {[%clk 0:02:34]}
12... Kxh7 {[%clk 0:02:22.7]} 13. Qc2+ {[%clk 0:02:33.1]} 13... Kg8 {[%clk
0:02:21.3]} 14. Ng5 {[%clk 0:02:22.7]} 14... g6 {[%clk 0:02:18.4]} 15. Qxc5
{[%clk 0:02:21]} 15... d4 {[%clk 0:02:17.3]} 16. O-O {[%clk 0:02:16.2]} 16...
dxe3 {[%clk 0:02:02]} 17. Bxe3 {[%clk 0:02:15.1]} 17... Qa5 {[%clk 0:01:53.3]}
18. Ne4 {[%clk 0:02:10.1]} 18... Qxc5 {[%clk 0:01:50.9]} 19. Bxc5 {[%clk
0:02:08.8]} 19... Be2 {[%clk 0:01:44]} 20. Rfe1 {[%clk 0:02:04.6]} 20... Bd3
{[%clk 0:01:36.8]} 21. Bxf8 {[%clk 0:02:00.8]} 21... Kxf8 {[%clk 0:01:36.9]} 22.
Rad1 {[%clk 0:01:59.9]} 22... Rd8 {[%clk 0:01:32.4]} 23. Nc5 {[%clk 0:01:58.3]}
1-0

[Event "Late-Titled-Tuesday-Blitz-February-06-2024"]
[Site "Chess.com"]
[Date "2024.02.06"]
[Round "2"]
[White "AndreyOstrovskiy"]
[Black "Oleksandr_Bortnyk"]
[Result "0-1"]
[WhiteElo "2658"]
[BlackElo "3091"]
[TimeControl "180+1"]
[EndTime "14:14:45 PST"]
[Termination "Oleksandr_Bortnyk won by resignation"]

1. e4 {[%clk 0:02:59.5]} 1... Nf6 {[%clk 0:02:58.7]} 2. e5 {[%clk 0:02:59]} 2...
Nd5 {[%clk 0:02:57.7]} 3. d4 {[%clk 0:02:59.6]} 3... d6 {[%clk 0:02:57.8]} 4.
Nf3 {[%clk 0:03:00.2]} 4... dxe5 {[%clk 0:02:58.3]} 5. Nxe5 {[%clk 0:02:59.2]}
5... c6 {[%clk 0:02:58.8]} 6. Be2 {[%clk 0:02:54.6]} 6... Bf5 {[%clk 0:02:57.9]}
7. Bg4 {[%clk 0:02:52.9]} 7... Bxg4 {[%clk 0:02:55.4]} 8. Qxg4 {[%clk
0:02:53.2]} 8... Nd7 {[%clk 0:02:54.4]} 9. Nxd7 {[%clk 0:02:52.4]} 9... Qxd7
{[%clk 0:02:55.3]} 10. Qxd7+ {[%clk 0:02:52.5]} 10... Kxd7 {[%clk 0:02:56.2]}
11. c3 {[%clk 0:02:52.4]} 11... e6 {[%clk 0:02:53.7]} 12. Nd2 {[%clk 0:02:51.3]}
12... Bd6 {[%clk 0:02:53.6]} 13. Nf3 {[%clk 0:02:50.8]} 13... b5 {[%clk
0:02:52.9]} 14. O-O {[%clk 0:02:42.4]} 14... a5 {[%clk 0:02:52.8]} 15. a4 {[%clk
0:02:38.2]} 15... Nb6 {[%clk 0:02:49.7]} 16. b3 {[%clk 0:02:26.8]} 16... Rhb8
{[%clk 0:02:49.5]} 17. Rd1 {[%clk 0:02:25.1]} 17... bxa4 {[%clk 0:02:48.4]} 18.
bxa4 {[%clk 0:02:21.7]} 18... Nd5 {[%clk 0:02:44.4]} 19. Bd2 {[%clk 0:01:53.8]}
19... Rb3 {[%clk 0:02:42.5]} 20. Ne1 {[%clk 0:01:42.2]} 20... Nxc3 {[%clk
0:02:35.7]} 21. Bxc3 {[%clk 0:01:41.7]} 21... Rxc3 {[%clk 0:02:36.3]} 22. Nd3
{[%clk 0:01:42.1]} 22... Rb8 {[%clk 0:02:33.5]} 23. Rac1 {[%clk 0:01:37.2]}
23... Rxc1 {[%clk 0:02:32.5]} 24. Rxc1 {[%clk 0:01:37.2]} 24... Rb3 {[%clk
0:02:32.2]} 25. Rd1 {[%clk 0:01:32.7]} 25... Ra3 {[%clk 0:02:28.5]} 26. Nb2
{[%clk 0:01:31.2]} 26... Ra2 {[%clk 0:02:22.6]} 27. Nc4 {[%clk 0:01:29.1]} 27...
Bc7 {[%clk 0:02:12.7]} 0-1

[Event "Late-Titled-Tuesday-Blitz-February-06-2024"]
[Site "Chess.com"]
[Date "2024.02.06"]
[Round "2"]
[White "gunslinger222"]
[Black "CarrotsandPizza"]
[Result "0-1"]
[WhiteElo "2282"]
[BlackElo "2521"]
[TimeControl "180+1"]
[EndTime "14:14:45 PST"]
[Termination "CarrotsandPizza won by resignation"]

1. d4 {[%clk 0:03:00.6]} 1... Nf6 {[%clk 0:02:59.1]} 2. Bg5 {[%clk 0:03:01.2]}
2... g6 {[%clk 0:02:56.5]} 3. e3 {[%clk 0:02:59.9]} 3... Bg7 {[%clk 0:02:53.9]}
4. Be2 {[%clk 0:03:00.4]} 4... O-O {[%clk 0:02:53.9]} 5. h4 {[%clk 0:03:00.9]}
5... d6 {[%clk 0:02:53.7]} 6. h5 {[%clk 0:03:00.5]} 6... c5 {[%clk 0:02:53.7]}
7. hxg6 {[%clk 0:02:57.3]} 7... hxg6 {[%clk 0:02:54.6]} 8. dxc5 {[%clk
0:02:54.5]} 8... dxc5 {[%clk 0:02:53.9]} 9. Qxd8 {[%clk 0:02:54.3]} 9... Rxd8
{[%clk 0:02:54.8]} 10. Bc4 {[%clk 0:02:50.9]} 10... Ne4 {[%clk 0:02:53.1]} 11.
Bxe7 {[%clk 0:02:47]} 11... Re8 {[%clk 0:02:39.7]} 12. Bh4 {[%clk 0:02:28.1]}
12... Bxb2 {[%clk 0:02:35.6]} 13. f3 {[%clk 0:02:28.3]} 13... Nd6 {[%clk
0:02:26.9]} 14. c3 {[%clk 0:02:25.3]} 14... Kg7 {[%clk 0:02:11]} 15. Bd5 {[%clk
0:02:04.4]} 15... Bxa1 {[%clk 0:02:00.6]} 16. Bg3 {[%clk 0:02:04]} 16... Nf5
{[%clk 0:01:45.7]} 17. Ne2 {[%clk 0:01:56]} 17... Nc6 {[%clk 0:01:18.4]} 18. e4
{[%clk 0:01:51.8]} 18... Nxg3 {[%clk 0:01:16.9]} 19. Nxg3 {[%clk 0:01:52.7]}
19... Be6 {[%clk 0:01:16.1]} 20. c4 {[%clk 0:01:50.9]} 0-1

[Event "Late-Titled-Tuesday-Blitz-February-06-2024"]
[Site "Chess.com"]
[Date "2024.02.06"]
[Round "2"]
[White "riconaipe"]
[Black "Durarbayli"]
[Result "0-1"]
[WhiteElo "2601"]
[BlackElo "2911"]
[TimeControl "180+1"]
[EndTime "14:14:52 PST"]
[Termination "Durarbayli won by resignation"]

1. d4 {[%clk 0:02:55.5]} 1... d5 {[%clk 0:02:58.3]} 2. c4 {[%clk 0:02:55.8]}
2... c6 {[%clk 0:02:58.9]} 3. Nf3 {[%clk 0:02:55.6]} 3... Nf6 {[%clk 0:02:59.1]}
4. e3 {[%clk 0:02:55]} 4... Bf5 {[%clk 0:02:58.5]} 5. Nc3 {[%clk 0:02:54.8]}
5... e6 {[%clk 0:02:58.9]} 6. Be2 {[%clk 0:02:54.3]} 6... h6 {[%clk 0:02:54]} 7.
O-O {[%clk 0:02:54]} 7... Nbd7 {[%clk 0:02:52.8]} 8. Qb3 {[%clk 0:02:43.8]} 8...
Qb6 {[%clk 0:02:49.8]} 9. c5 {[%clk 0:02:43.9]} 9... Qc7 {[%clk 0:02:43.4]} 10.
Rd1 {[%clk 0:02:15.1]} 10... g5 {[%clk 0:02:32.3]} 11. Bd3 {[%clk 0:02:11.6]}
11... Bxd3 {[%clk 0:02:29.6]} 12. Rxd3 {[%clk 0:02:12.5]} 12... g4 {[%clk
0:02:29.1]} 13. Nd2 {[%clk 0:02:02.4]} 13... e5 {[%clk 0:02:29.1]} 14. e4 {[%clk
0:02:01.9]} 14... exd4 {[%clk 0:02:25.3]} 15. exd5 {[%clk 0:01:48.9]} 15... Nxc5
{[%clk 0:02:17.4]} 16. Qc4 {[%clk 0:01:46.6]} 16... Nxd3 {[%clk 0:02:06.6]} 17.
Qxd4 {[%clk 0:01:37.7]} 17... Ne5 {[%clk 0:02:05.8]} 18. Nc4 {[%clk 0:01:33.4]}
18... Nxc4 {[%clk 0:02:00.9]} 19. Qxf6 {[%clk 0:01:33.2]} 19... Qe5 {[%clk
0:01:58.9]} 0-1

[Event "Late-Titled-Tuesday-Blitz-February-06-2024"]
[Site "Chess.com"]
[Date "2024.02.06"]
[Round "2"]
[White "Eloist"]
[Black "ljm509"]
[Result "1-0"]
[WhiteElo "2430"]
[BlackElo "2019"]
[TimeControl "180+1"]
[EndTime "14:15:05 PST"]
[Termination "Eloist won by checkmate"]

1. e4 {[%clk 0:03:00.9]} 1... e6 {[%clk 0:02:56.5]} 2. d4 {[%clk 0:03:00.2]}
2... d5 {[%clk 0:02:57.4]} 3. Nc3 {[%clk 0:03:00.4]} 3... dxe4 {[%clk
0:02:56.2]} 4. Nxe4 {[%clk 0:03:00.2]} 4... Nd7 {[%clk 0:02:57.1]} 5. Nf3 {[%clk
0:02:59.8]} 5... Ngf6 {[%clk 0:02:58]} 6. Bd3 {[%clk 0:02:57.8]} 6... Be7 {[%clk
0:02:58.4]} 7. c3 {[%clk 0:02:52]} 7... Nxe4 {[%clk 0:02:57.9]} 8. Bxe4 {[%clk
0:02:51.5]} 8... Nf6 {[%clk 0:02:58.5]} 9. Bc2 {[%clk 0:02:46]} 9... O-O {[%clk
0:02:58.5]} 10. Qd3 {[%clk 0:02:42.7]} 10... h6 {[%clk 0:02:57.6]} 11. Be3
{[%clk 0:02:36]} 11... b6 {[%clk 0:02:56.8]} 12. Ne5 {[%clk 0:02:32.5]} 12...
Bb7 {[%clk 0:02:56.2]} 13. Ng4 {[%clk 0:02:26.1]} 13... Re8 {[%clk 0:02:48.3]}
14. Nxf6+ {[%clk 0:02:24.4]} 14... Bxf6 {[%clk 0:02:49.2]} 15. Qh7+ {[%clk
0:02:22.2]} 15... Kf8 {[%clk 0:02:49.2]} 16. Ba4 {[%clk 0:02:07.8]} 16... c6
{[%clk 0:02:44.6]} 17. O-O-O {[%clk 0:02:01.5]} 17... b5 {[%clk 0:02:43.1]} 18.
d5 {[%clk 0:01:51.2]} 18... Qd6 {[%clk 0:01:31.5]} 19. dxe6 {[%clk 0:01:43.2]}
19... Qe5 {[%clk 0:01:30.1]} 20. Rd7 {[%clk 0:01:35.2]} 20... g5 {[%clk
0:01:19]} 21. Rxf7# {[%clk 0:01:32.1]} 1-0